bitfinex/quotes_SOLUSD_20241122
["timestamp","ask_amount","ask_price","bid_price","bid_amount"]
[1732251166776,14.85425846,260.8,260.69,24.4901]
[1732251168279,2.5,260.9,260.69,24.4901]
[1732251168280,14.85425846,260.84,260.69,24.4901]
[1732251168477,14.85425846,260.84,260.7,9.11997069]
[1732251169207,14.85425846,260.84,260.71,20.0]
[1732251170490,14.85425846,260.85,260.71,20.0]
[1732251170702,14.85425846,260.85,260.71,24.77112788]
[1732251171106,14.85425846,260.85,260.71,9.11997069]
[1732251171281,14.85425846,260.85,260.72,4.77112788]
[1732251171480,14.85425846,260.85,260.72,24.77112788]
[1732251172499,14.85425846,260.89,260.77,23.776884]
[1732251172703,14.85425846,260.89,260.79,23.776884]
[1732251173280,14.85425846,260.91,260.79,23.776884]
[1732251173480,14.85425846,260.91,260.8,20.0]
[1732251173686,14.85425846,260.89,260.8,20.0]
[1732251174304,14.85425846,260.91,260.8,20.0]
[1732251174593,14.85425846,260.89,260.74,24.4901]
[1732251174819,14.85425846,260.85,260.75,20.0]
[1732251175105,14.85425846,260.85,260.74,24.4901]
[1732251175616,14.85425846,260.83,260.74,24.4901]
[1732251177111,14.85425846,260.83,260.75,43.776884]
[1732251177595,14.85425846,260.81,260.75,20.0]
[1732251178282,14.85425846,260.79,260.74,24.4901]
[1732251178607,14.85425846,260.77,260.68,24.4901]
[1732251179497,14.85425846,260.75,260.68,24.4901]
[1732251180221,14.85425846,260.77,260.68,24.4901]
[1732251180506,14.85425846,260.79,260.68,24.4901]
[1732251180813,25.0233,260.85,260.69,43.776884]
[1732251180814,14.85425846,260.81,260.69,43.776884]
[1732251181116,25.0233,260.85,260.69,43.776884]
[1732251181313,14.85425846,260.82,260.69,48.12572681]
[1732251181608,14.85425846,260.82,260.69,52.89685469]
[1732251183185,14.85425846,260.78,260.69,48.12572681]
[1732251183491,14.85425846,260.76,260.69,20.0]
[1732251183689,14.85425846,260.74,260.69,20.0]
[1732251183893,14.85425846,260.72,260.62,28.4297]
[1732251184081,14.85425846,260.72,260.62,24.4901]
[1732251185385,14.85425846,260.7,260.62,24.4901]
[1732251186006,14.85425846,260.7,260.57,4.34884281]
[1732251186411,14.85425846,260.68,260.57,4.34884281]
[1732251187402,14.85425846,260.68,260.58,23.776884]
[1732251187713,14.85425846,260.68,260.56,28.4297]
[1732251187714,14.85425846,260.66,260.56,24.4901]
[1732251187915,14.85425846,260.69,260.56,24.4901]
[1732251188091,14.85425846,260.67,260.57,4.34884281]
[1732251188413,14.85425846,260.65,260.57,4.34884281]
[1732251189410,14.85425846,260.63,260.57,4.34884281]
[1732251190927,14.85425846,260.69,260.57,24.34884281]
[1732251191128,14.85425846,260.67,260.57,29.11997069]
[1732251191327,14.85425846,260.69,260.6,23.776884]
[1732251192136,14.85425846,260.65,260.6,23.776884]
[1732251192726,14.85425846,260.65,260.59,23.776884]
[1732251194211,14.85425846,260.65,260.59,23.276884]
[1732251194804,14.85425846,260.63,260.49,24.4901]
[1732251195117,14.85425846,260.63,260.51,4.34884281]
[1732251195310,14.85425846,260.63,260.52,4.77112788]
[1732251195509,14.85425846,260.63,260.53,24.34884281]
[1732251196408,14.85425846,260.63,260.54,23.776884]
[1732251196611,14.85425846,260.63,260.56,23.776884]
[1732251197615,14.85425846,260.65,260.56,23.776884]
[1732251197811,2.5,260.82,260.57,20.0]
[1732251198128,2.5,260.84,260.62,23.776884]
[1732251198129,14.85425846,260.71,260.62,23.776884]
[1732251199224,14.85425846,260.71,260.64,23.776884]
[1732251199526,14.85425846,260.71,260.62,23.776884]
[1732251201041,14.85425846,260.71,260.62,28.54801188]
[1732251202119,14.85425846,260.69,260.62,28.54801188]
[1732251202330,8.3607,260.76,260.62,23.776884]
[1732251202331,14.85425846,260.67,260.62,23.776884]
[1732251202520,14.85425846,260.63,260.47,19.8868]
[1732251202723,8.4692,260.64,260.47,19.8868]
[1732251202724,14.85425846,260.6,260.47,19.8868]
[1732251202905,14.85425846,260.6,260.48,4.34884281]
[1732251203103,14.85425846,260.62,260.48,9.11997069]
[1732251203419,14.85425846,260.6,260.49,4.77112788]
[1732251203731,14.85425846,260.58,260.49,4.77112788]
[1732251203903,8.4692,260.64,260.49,9.11997069]
[1732251204105,14.85425846,260.65,260.5,4.34884281]
[1732251204321,14.85425846,260.65,260.51,4.77112788]
[1732251205141,14.85425846,260.65,260.52,23.776884]
[1732251205330,14.85425846,260.65,260.53,24.77112788]
[1732251205625,14.85425846,260.65,260.54,23.776884]
[1732251205824,20.0,260.72,260.54,23.776884]
[1732251206033,14.85425846,260.64,260.55,4.77112788]
[1732251207213,14.85425846,260.6,260.48,20.0]
[1732251207408,14.85425846,260.6,260.49,4.77112788]
[1732251208637,14.85425846,260.6,260.5,23.776884]
[1732251209537,14.85425846,260.62,260.5,23.776884]
[1732251209741,14.85425846,260.62,260.51,23.776884]
[1732251210510,14.85425846,260.59,260.51,23.776884]
[1732251210712,14.85425846,260.57,260.47,19.8868]
[1732251211535,14.85425846,260.65,260.41,3.66149832]
[1732251211536,14.85425846,260.53,260.41,3.66149832]
[1732251211838,14.85425846,260.46,260.4,21.4315]
[1732251212335,14.85425846,260.44,260.4,21.4315]
[1732251212635,14.85425846,260.46,260.4,21.4315]
[1732251214038,14.85425846,260.52,260.33,21.4315]
[1732251214039,14.85425846,260.44,260.33,21.4315]
[1732251214214,8.0061,260.51,260.33,21.4315]
[1732251214215,14.85425846,260.4,260.33,21.4315]
[1732251214763,14.85425846,260.38,260.26,21.4315]
[1732251215343,14.85425846,260.38,260.26,25.78034281]
[1732251216642,14.85425846,260.38,260.27,23.776884]
[1732251217142,14.85425846,260.38,260.28,20.0]
[1732251217323,14.85425846,260.38,260.29,23.776884]
[1732251217536,14.85425846,260.38,260.3,20.0]
[1732251217824,14.85425846,260.38,260.31,23.776884]
[1732251218821,14.85425846,260.4,260.31,23.776884]
[1732251220121,14.85425846,260.42,260.3,20.0]
[1732251220548,14.85425846,260.44,260.3,20.0]
[1732251220730,14.85425846,260.44,260.27,20.0]
[1732251221047,14.85425846,260.48,260.28,4.92497214]
[1732251221255,14.85425846,260.5,260.28,4.92497214]
[1732251221427,14.85425846,260.5,260.3,20.0]
[1732251221619,14.85425846,260.5,260.32,20.0]
[1732251222051,14.85425846,260.5,260.34,20.0]
[1732251222547,14.85425846,260.5,260.36,20.0]
[1732251222845,14.85425846,260.5,260.37,23.776884]
[1732251223041,14.85425846,260.5,260.38,20.0]
[1732251223344,14.85425846,260.5,260.39,23.776884]
[1732251223551,14.85425846,260.54,260.4,20.0]
[1732251223736,23.23205846,260.56,260.43,23.776884]
[1732251224455,14.85425846,260.54,260.43,23.776884]
[1732251227746,14.85425846,260.54,260.42,20.0]
[1732251227747,14.85425846,260.52,260.42,20.0]
[1732251228128,14.85425846,260.52,260.39,43.776884]
[1732251228752,14.85425846,260.54,260.39,43.776884]
[1732251230630,14.85425846,260.52,260.39,43.776884]
[1732251231142,14.85425846,260.54,260.39,43.776884]
[1732251236442,14.85425846,260.52,260.39,20.0]
[1732251236759,14.85425846,260.49,260.39,20.0]
[1732251237863,14.85425846,260.49,260.4,23.776884]
[1732251238161,14.85425846,260.49,260.39,20.0]
[1732251239356,14.85425846,260.49,260.41,23.776884]
[1732251239529,14.85425846,260.49,260.4,23.776884]
[1732251240337,14.85425846,260.49,260.38,21.1168]
[1732251240539,14.85425846,260.47,260.38,21.1168]
[1732251241345,14.85425846,260.47,260.32,23.7203]
[1732251241557,14.85425846,260.45,260.32,28.06914281]
[1732251242059,14.85425846,260.45,260.33,20.0]
[1732251242561,12.2157,260.56,260.36,27.598884]
[1732251242562,14.85425846,260.51,260.36,27.598884]
[1732251242861,14.85425846,260.51,260.4,23.776884]
[1732251243058,14.85425846,260.51,260.41,20.0]
[1732251243264,14.85425846,260.51,260.42,23.776884]
[1732251243864,14.85425846,260.48,260.34,4.34884281]
[1732251244052,14.85425846,260.46,260.34,23.776884]
[1732251244241,14.85425846,260.48,260.36,23.776884]
[1732251244443,14.85425846,260.48,260.37,20.0]
[1732251244752,8.3778,260.56,260.37,20.0]
[1732251244753,14.85425846,260.52,260.38,23.776884]
[1732251245243,14.85425846,260.5,260.38,23.776884]
[1732251246547,14.85425846,260.52,260.38,23.776884]
[1732251246741,14.85425846,260.52,260.4,23.776884]
[1732251247141,14.85425846,260.52,260.39,20.0]
[1732251247442,14.85425846,260.52,260.4,23.776884]
[1732251247847,14.85425846,260.54,260.4,23.776884]
[1732251248059,23.23205846,260.56,260.42,23.776884]
[1732251248243,14.85425846,260.56,260.44,23.776884]
[1732251248440,14.85425846,260.58,260.45,20.0]
[1732251248663,2.83075444,260.57,260.46,23.776884]
[1732251248844,14.85425846,260.6,260.46,23.776884]
[1732251249049,2.83106131,260.59,260.47,20.0]
[1732251249367,2.83106131,260.58,260.48,23.776884]
[1732251249571,14.85425846,260.6,260.48,23.776884]
[1732251249747,2.83219665,260.59,260.48,23.776884]
[1732251249946,2.83219665,260.58,260.48,23.776884]
[1732251250162,14.85425846,260.62,260.48,23.776884]
[1732251250463,2.83372737,260.61,260.5,23.776884]
[1732251250665,2.83372737,260.6,260.5,23.776884]
[1732251250874,2.83409546,260.59,260.5,23.776884]
[1732251251037,14.85425846,260.62,260.5,23.776884]
[1732251251244,2.83477083,260.61,260.5,23.776884]
[1732251251445,2.83477083,260.6,260.5,23.776884]
[1732251251753,14.85425846,260.62,260.5,23.776884]
[1732251251979,2.83389595,260.61,260.5,23.776884]
[1732251252286,14.85425846,260.62,260.5,23.776884]
[1732251252287,2.83389595,260.6,260.5,23.776884]
[1732251252446,14.85425846,260.62,260.5,23.776884]
[1732251252648,2.83243267,260.61,260.51,20.0]
[1732251252847,14.85425846,260.62,260.51,20.0]
[1732251253147,2.83177618,260.61,260.51,20.0]
[1732251253360,2.83177618,260.6,260.51,20.0]
[1732251253557,2.83164481,260.59,260.51,20.0]
[1732251253758,14.85425846,260.65,260.53,20.0]
[1732251253958,2.83192705,260.64,260.54,23.776884]
[1732251254152,2.83192705,260.63,260.54,23.776884]
[1732251254460,2.83192705,260.62,260.54,23.776884]
[1732251254666,9.5348952,260.63,260.54,23.776884]
[1732251254860,2.83104016,260.62,260.54,23.776884]
[1732251255159,9.5348952,260.63,260.54,23.776884]
[1732251256043,9.5348952,260.61,260.54,23.776884]
[1732251259950,9.5348952,260.57,260.52,21.5718]
[1732251260140,9.5348952,260.57,260.4,7.62149832]
[1732251260141,9.5348952,260.55,260.43,7.47900103]
[1732251260345,9.5348952,260.55,260.41,21.5718]
[1732251261164,9.5348952,260.53,260.41,21.5718]
[1732251261370,9.5348952,260.51,260.41,21.5718]
[1732251262748,14.91324213,260.5,260.41,21.5718]
[1732251263151,14.91324213,260.5,260.42,23.776884]
[1732251263564,14.91324213,260.5,260.43,20.0]
[1732251263745,14.91324213,260.5,260.44,23.776884]
[1732251264345,14.91324213,260.5,260.42,20.0]
[1732251264555,14.91324213,260.5,260.41,21.5718]
[1732251264556,14.91324213,260.5,260.44,20.0]
[1732251265149,14.91324213,260.52,260.45,23.776884]
[1732251268271,14.91324213,260.5,260.42,23.776884]
[1732251269359,14.91324213,260.46,260.35,21.1876]
[1732251269975,14.91324213,260.44,260.35,21.1876]
[1732251270351,14.91324213,260.46,260.35,21.1876]
[1732251271447,14.91324213,260.46,260.36,23.776884]
[1732251271766,14.91324213,260.46,260.37,20.0]
[1732251271957,14.91324213,260.44,260.32,43.776884]
[1732251272563,14.91324213,260.44,260.3,4.34884281]
[1732251273062,14.91324213,260.44,260.3,12.14894406]
[1732251273650,14.91324213,260.44,260.31,20.0]
[1732251273855,14.91324213,260.4,260.31,20.0]
[1732251274562,14.91324213,260.4,260.29,20.0]
[1732251274758,14.91324213,260.4,260.25,20.0]
[1732251275466,14.91324213,260.4,260.26,23.776884]
[1732251275775,14.91324213,260.4,260.28,23.776884]
[1732251275975,14.91324213,260.42,260.28,23.776884]
[1732251276177,8.6126,260.45,260.31,20.0]
[1732251276367,8.6126,260.45,260.34,23.776884]
[1732251277469,8.6126,260.45,260.32,4.34884281]
[1732251277778,8.6126,260.45,260.34,20.0]
[1732251278671,14.91324213,260.5,260.35,23.776884]
[1732251279072,14.91324213,260.5,260.36,20.0]
[1732251281776,44.50954213,260.52,260.38,21.828]
[1732251282774,14.91324213,260.5,260.35,1.828]
[1732251283159,14.91324213,260.5,260.35,21.828]
[1732251283366,14.91324213,260.48,260.35,20.0]
[1732251283984,14.91324213,260.48,260.32,12.01140697]
[1732251283985,14.91324213,260.48,260.33,23.828]
[1732251285258,14.91324213,260.5,260.33,28.17684281]
[1732251285459,44.50954213,260.52,260.35,3.828]
[1732251285684,44.50954213,260.52,260.35,28.17684281]
[1732251286880,14.91324213,260.5,260.35,28.17684281]
[1732251287078,14.91324213,260.48,260.33,23.828]
[1732251287377,14.91324213,260.48,260.33,3.828]
[1732251287967,14.91324213,260.48,260.32,3.828]
[1732251288167,14.91324213,260.5,260.34,3.828]
[1732251288671,9.54430393,260.51,260.36,20.0]
[1732251288868,29.5963,260.52,260.36,20.0]
[1732251289080,29.5963,260.52,260.38,20.0]
[1732251289866,8.6126,260.52,260.39,23.776884]
[1732251290066,38.51940393,260.58,260.43,23.776884]
[1732251290290,2.83028239,260.57,260.45,23.776884]
[1732251290580,2.83028239,260.56,260.45,23.776884]
[1732251290781,28.9751,260.58,260.45,23.776884]
[1732251290988,2.83049621,260.57,260.45,23.776884]
[1732251291190,28.9751,260.58,260.46,20.0]
[1732251291585,2.83057761,260.57,260.46,20.0]
[1732251291779,28.9751,260.58,260.46,20.0]
[1732251292173,2.83066372,260.57,260.46,20.0]
[1732251292370,7.9514,260.58,260.46,20.0]
[1732251292692,7.9514,260.58,260.46,23.828]
[1732251295470,14.90288494,260.61,260.49,23.776884]
[1732251295668,14.90288494,260.61,260.5,20.0]
[1732251295873,35.92658494,260.63,260.5,20.0]
[1732251296087,2.82846601,260.62,260.5,20.0]
[1732251296281,35.92658494,260.63,260.5,20.0]
[1732251296481,2.82851723,260.62,260.5,20.0]
[1732251296687,35.92658494,260.63,260.5,20.0]
[1732251296889,14.90288494,260.61,260.5,20.0]
[1732251297190,14.90288494,260.61,260.49,20.0]
[1732251297569,7.9514,260.65,260.49,20.0]
[1732251297570,14.90288494,260.59,260.49,20.0]
[1732251297772,14.90288494,260.61,260.49,20.0]
[1732251301087,14.90288494,260.61,260.51,20.0]
[1732251301288,14.90288494,260.61,260.49,20.0]
[1732251301289,14.90288494,260.61,260.5,23.776884]
[1732251301491,14.90288494,260.61,260.51,20.0]
[1732251301994,7.9514,260.71,260.54,23.776884]
[1732251302201,14.90288494,260.69,260.57,20.0]
[1732251303086,14.90288494,260.65,260.57,20.0]
[1732251303278,14.90288494,260.67,260.53,23.776884]
[1732251303488,14.90288494,260.67,260.56,20.0]
[1732251303689,14.90288494,260.67,260.57,23.776884]
[1732251303894,14.90288494,260.67,260.58,20.0]
[1732251304299,14.90288494,260.65,260.58,20.0]
[1732251304499,14.90288494,260.65,260.54,20.0]
[1732251304692,14.90288494,260.65,260.56,20.0]
[1732251304891,14.90288494,260.67,260.56,20.0]
[1732251306178,14.90288494,260.67,260.57,23.776884]
[1732251306592,14.90288494,260.67,260.58,20.0]
[1732251308400,14.90288494,260.65,260.58,20.0]
[1732251308595,14.90288494,260.65,260.55,20.0]
[1732251308782,14.90288494,260.65,260.57,20.0]
[1732251309699,14.90288494,260.63,260.51,3.828]
[1732251310504,14.90288494,260.63,260.48,3.828]
[1732251310716,14.90288494,260.63,260.5,3.828]
[1732251311208,14.90288494,260.63,260.52,23.828]
[1732251312699,9.53472636,260.64,260.52,20.0]
[1732251312899,9.53472636,260.62,260.52,20.0]
[1732251313990,7.9514,260.71,260.49,4.34884281]
[1732251313991,9.53472636,260.6,260.49,4.34884281]
[1732251314596,9.53472636,260.62,260.49,4.34884281]
[1732251314986,7.9514,260.71,260.49,4.34884281]
[1732251314987,7.9514,260.71,260.51,20.0]
[1732251315308,7.9514,260.71,260.54,23.776884]
[1732251315309,9.53472636,260.68,260.54,23.776884]
[1732251315486,9.53472636,260.68,260.55,20.0]
[1732251315682,9.53472636,260.68,260.57,20.0]
[1732251315898,9.53472636,260.68,260.56,23.776884]
[1732251315899,9.53472636,260.68,260.58,20.5524]
[1732251316210,9.53472636,260.68,260.59,20.0]
[1732251316810,9.03472636,260.68,260.59,20.0]
[1732251317505,21.0237,260.73,260.59,20.0]
[1732251317506,7.7958,260.77,260.63,20.0]
[1732251317700,7.7958,260.84,260.65,23.8852]
[1732251317892,9.53472636,260.83,260.69,20.0]
[1732251318099,9.53472636,260.83,260.71,20.0]
[1732251318807,14.87633772,260.83,260.71,20.0]
[1732251319388,7.7958,260.84,260.66,4.34884281]
[1732251319389,14.87633772,260.72,260.66,4.34884281]
[1732251319610,14.87633772,260.68,260.59,28.34358905]
[1732251320022,23.776884,260.83,260.59,28.34358905]
[1732251320706,14.87633772,260.74,260.59,28.34358905]
[1732251321095,14.87633772,260.74,260.63,20.0]
[1732251321306,14.87633772,260.74,260.61,20.0]
[1732251321613,14.87633772,260.74,260.63,20.0]
[1732251323087,23.776884,260.83,260.63,20.0]
[1732251323088,14.87633772,260.78,260.65,20.0]
[1732251323289,14.87633772,260.8,260.67,20.0]
[1732251324406,14.87633772,260.8,260.68,23.776884]
[1732251324608,14.87633772,260.8,260.69,20.0]
[1732251325108,7.7958,260.84,260.69,20.0]
[1732251325310,14.87633772,260.8,260.69,20.0]
[1732251326998,22.67213772,260.84,260.71,20.0]
[1732251327203,14.87633772,260.84,260.74,23.776884]
[1732251328307,14.87633772,260.8,260.73,20.0]
[1732251328812,14.87633772,260.82,260.73,20.0]
[1732251330312,14.87633772,260.82,260.73,27.63599134]
[1732251333908,14.87633772,260.84,260.73,27.63599134]
[1732251334108,14.87633772,260.88,260.76,23.776884]
[1732251334520,14.87633772,260.88,260.77,20.0]
[1732251334918,14.87633772,260.9,260.77,20.0]
[1732251335227,14.87633772,260.94,260.81,20.0]
[1732251335726,14.87633772,260.94,260.83,20.0]
[1732251336030,14.87633772,260.96,260.83,20.0]
[1732251336410,14.87633772,260.96,260.84,23.776884]
[1732251336609,14.87633772,260.96,260.85,20.0]
[1732251337107,14.87633772,260.98,260.86,23.776884]
[1732251337428,14.87633772,261.02,260.91,20.0]
[1732251337633,14.87633772,261.04,260.93,20.0]
[1732251338115,14.87633772,260.98,260.83,43.776884]
[1732251343936,14.87633772,260.98,260.83,20.0]
[1732251344243,14.87633772,261.0,260.83,20.0]
[1732251345823,14.87633772,260.97,260.83,20.0]
[1732251346041,14.87633772,260.93,260.83,20.0]
[1732251346342,14.87633772,260.97,260.83,20.0]
[1732251347914,14.87633772,260.99,260.83,20.0]
[1732251348117,14.87633772,261.03,260.88,23.776884]
[1732251348328,22.66333772,261.05,260.89,20.0]
[1732251350942,14.87633772,261.01,260.84,4.93294537]
[1732251351240,14.87633772,261.01,260.85,23.776884]
[1732251351417,14.87633772,261.03,260.86,20.0]
[1732251351626,7.787,261.05,260.9,3.811]
[1732251351627,14.87633772,261.05,260.9,3.811]
[1732251352029,14.87633772,261.07,260.9,3.811]
[1732251352435,14.87633772,261.09,260.91,24.35153818]
[1732251352643,22.66333772,261.11,260.94,20.0]
[1732251352935,14.87633772,261.11,260.95,19.8109]
[1732251354340,14.87633772,261.13,260.96,20.0]
[1732251356647,14.87633772,261.15,261.0,20.0]
[1732251356830,14.87633772,261.17,261.01,23.776884]
[1732251357030,21.0315,261.22,261.03,20.0]
[1732251357031,14.87633772,261.19,261.03,20.0]
[1732251358332,14.87633772,261.1,261.03,20.0]
[1732251358526,14.87633772,261.13,261.03,20.0]
[1732251359935,14.87633772,261.09,261.03,20.0]
[1732251360141,14.87633772,261.11,261.03,20.0]
[1732251360542,14.87633772,261.11,261.02,19.8109]
[1732251362052,14.87633772,261.09,261.02,19.8109]
[1732251362637,23.776884,261.18,261.02,19.8109]
[1732251362638,14.87633772,261.12,261.02,19.8109]
[1732251362956,14.87633772,261.16,261.02,19.8109]
[1732251363137,14.87633772,261.2,261.03,20.57452056]
[1732251363649,14.87633772,261.2,261.03,20.0]
[1732251364253,14.87633772,261.2,261.03,27.71248342]
[1732251366233,14.87633772,261.16,261.03,27.71248342]
[1732251366744,23.776884,261.22,261.02,19.8109]
[1732251366745,14.87633772,261.1,261.02,19.8109]
[1732251367034,14.87633772,261.05,260.95,7.76438221]
[1732251367257,14.87633772,261.05,260.94,19.8109]
[1732251367850,14.87633772,261.09,260.94,19.8109]
[1732251368044,14.87633772,261.11,260.94,19.8109]
[1732251368247,14.87633772,261.11,260.95,23.828]
[1732251371744,14.87633772,261.09,260.95,23.828]
[1732251371940,14.87633772,261.05,260.95,20.0]
[1732251372377,14.87633772,261.05,260.94,27.54754961]
[1732251372556,10.287,261.15,260.94,27.54754961]
[1732251372557,2.5,261.12,260.94,19.8109]
[1732251372749,14.87633772,261.01,260.94,19.8109]
[1732251372945,14.87633772,261.01,260.86,3.8118]
[1732251372946,14.87633772,260.99,260.86,23.552]
[1732251373246,14.87633772,260.97,260.86,27.55558441]
[1732251374356,14.87633772,260.97,260.87,20.0]
[1732251374864,14.87633772,260.95,260.86,19.7402]
[1732251375039,14.87633772,261.04,260.85,3.828]
[1732251375040,14.87633772,260.93,260.85,3.828]
[1732251375240,14.87633772,260.93,260.84,3.828]
[1732251375435,14.87633772,260.95,260.84,3.828]
[1732251375942,14.87633772,260.99,260.84,3.828]
[1732251376257,14.87633772,260.99,260.82,3.828]
[1732251378052,14.87633772,261.03,260.84,23.828]
[1732251378251,14.87633772,261.01,260.84,23.828]
[1732251378760,14.87633772,261.01,260.83,23.828]
[1732251378956,14.87633772,261.01,260.83,24.40283275]
[1732251379263,14.87633772,261.03,260.85,3.828]
[1732251379443,14.87633772,261.03,260.85,24.40275574]
[1732251381059,14.87633772,261.03,260.87,20.0]
[1732251383161,14.87633772,261.21,260.99,23.776884]
[1732251383359,14.87633772,261.21,261.01,23.776884]
[1732251383545,14.87633772,261.21,261.02,31.80267312]
[1732251383753,14.87633772,261.17,261.02,31.80267312]
[1732251384260,14.87633772,261.17,261.03,3.828]
[1732251384564,14.87633772,261.19,261.03,10.11272775]
[1732251384758,14.87633772,261.19,261.04,20.57444456]
[1732251384956,14.87633772,261.19,261.04,26.28472775]
[1732251385656,14.87633772,261.17,261.04,26.28472775]
[1732251387148,23.776884,261.16,261.04,26.28472775]
[1732251387353,14.87633772,261.1,260.97,3.8118]
[1732251387968,14.87633772,261.12,260.97,3.8118]
[1732251388474,14.87633772,261.07,260.96,19.7402]
[1732251388645,23.776884,261.08,260.91,3.8118]
[1732251388646,14.87633772,261.01,260.91,3.8118]
[1732251388850,14.87633772,261.01,260.9,7.58718695]
[1732251389049,14.87633772,261.03,260.89,20.1477]
[1732251389250,14.87633772,261.07,260.89,26.35214374]
[1732251389453,14.87633772,261.07,260.9,5.62967219]
[1732251389673,14.87633772,261.09,260.91,0.57461605]
[1732251389868,14.87633772,261.09,260.92,5.62967219]
[1732251390071,14.87633772,261.1,260.92,5.62967219]
[1732251390364,14.87633772,261.1,260.93,0.57463517]
[1732251391169,23.776884,261.11,260.93,20.57463517]
[1732251391372,22.63733772,261.12,260.94,20.0]
[1732251391549,22.63733772,261.12,260.95,20.0]
[1732251392065,14.87633772,261.1,260.95,20.0]
[1732251392772,14.87633772,261.1,260.96,20.0]
[1732251393272,14.87633772,261.12,260.96,20.57458318]
[1732251393643,14.87633772,261.1,260.9,23.828]
[1732251393854,14.87633772,261.1,260.95,20.0]
[1732251394261,14.87633772,261.1,260.96,3.828]
[1732251394455,14.87633772,261.08,260.93,20.0]
[1732251394662,14.87633772,261.08,260.92,3.828]
[1732251394859,14.87633772,261.02,260.89,33.30724244]
[1732251396450,14.87633772,260.95,260.89,20.1477]
[1732251396668,14.87633772,260.99,260.89,20.1477]
[1732251397661,14.87633772,260.99,260.9,20.0]
[1732251401068,14.87633772,260.94,260.81,24.8639787]
[1732251401271,14.87633772,260.96,260.81,24.8639787]
[1732251401582,14.87633772,260.96,260.81,32.51747203]
[1732251402152,14.87633772,260.96,260.82,20.0]
[1732251402968,14.87633772,260.94,260.82,20.0]
[1732251403282,23.776884,260.93,260.81,32.51747203]
[1732251403588,14.87633772,260.88,260.81,20.1477]
[1732251404476,14.87633772,260.88,260.77,7.50397396]
[1732251404658,14.87633772,260.88,260.76,20.0]
[1732251406765,14.87633772,260.9,260.76,20.0]
[1732251407856,14.87633772,260.94,260.77,0.57503133]
[1732251408984,14.37074073,260.94,260.77,0.57503133]
[1732251409903,14.87633772,260.92,260.77,0.57503133]
[1732251410283,14.87633772,260.9,260.76,25.62967219]
[1732251410987,14.87633772,260.9,260.76,20.0]
[1732251411785,14.87633772,260.88,260.76,20.0]
[1732251412168,14.87633772,260.84,260.76,20.0]
[1732251412372,14.87633772,260.82,260.75,15.0228]
[1732251413878,14.87633772,260.82,260.71,20.0]
[1732251414479,14.87633772,260.82,260.69,16.0949]
[1732251414685,14.87633772,260.82,260.7,20.0]
[1732251419971,14.87633772,260.78,260.7,20.0]
[1732251420295,14.87633772,260.8,260.69,16.0949]
[1732251420881,14.87633772,260.78,260.64,4.7162787]
[1732251421272,14.87633772,260.76,260.61,15.8076]
[1732251422102,14.87633772,260.76,260.61,20.5238787]
[1732251422394,6.5652,260.77,260.62,24.7162787]
[1732251423584,30.90303772,260.84,260.63,29.98190804]
[1732251423800,14.87633772,260.82,260.64,4.7162787]
[1732251423973,14.87633772,260.8,260.64,4.7162787]
[1732251425291,14.87633772,260.8,260.64,24.7162787]
[1732251425478,16.0267,260.84,260.61,23.42293077]
[1732251425479,14.87633772,260.76,260.61,23.42293077]
[1732251425892,16.0267,260.84,260.61,15.8076]
[1732251425893,14.87633772,260.7,260.61,15.8076]
[1732251426201,14.87633772,260.68,260.55,15.8076]
[1732251426383,38.65322172,260.67,260.55,15.8076]
[1732251427413,14.87633772,260.63,260.55,15.8076]
[1732251427700,14.87633772,260.65,260.56,20.0]
[1732251428903,38.65322172,260.67,260.56,20.0]
[1732251429288,14.87633772,260.65,260.56,20.0]
[1732251429883,23.776884,260.67,260.51,20.0]
[1732251429884,14.87633772,260.63,260.51,20.0]
[1732251430081,14.87633772,260.63,260.49,15.8076]
[1732251430381,14.87633772,260.59,260.49,15.8076]
[1732251431088,6.5652,260.61,260.49,15.8076]
[1732251431301,14.87633772,260.65,260.49,26.15355089]
[1732251431507,14.87633772,260.65,260.5,25.62967219]
[1732251432888,14.87633772,260.65,260.5,20.0]